Workbook

Sheet Budget June 2015 - March 2016
A1: Mobile Science Lab - ASHA for Education, Boston Chapter
A2: Project Period - 1st June 2015 to 31st March 2016
A3: S.No | B3: Activities | C3: Unit | D3: Unit Rate | E3: No. of Units | F3: Budget | G3: Comments
A4: A | B4: Personnel Cost | F4: =SUM(F5:F9) -> 353000
A5: A.1 | B5: Program Manager (1) | C5: Per month | D5: 8000 | E5: 10 | F5: =D5*E5 -> 80000 | G5: Part time - Rs. 5,000 per month
A6: A.2 | B6: Facilitator - PCM / Documentation Officer | C6: Per month | D6: 15000 | E6: 5 | F6: =D6*E6 -> 75000 | G6: New recruitment - higher salaries are needed to get quality staff members
A7: A.3 | B7: Facilitator - CBZ (1) | C7: Per month | D7: 10000 | E7: 10 | F7: 100000 | G7: New recruitment - higher salaries are needed to get quality staff members
A8: A.4 | B8: Driver (1) | C8: Per month | D8: 7000 | E8: 10 | F8: 70000
A9: A.5 | B9: Staff Benefit | C9: Per month | D9: =SUM(D5:D8)*7% -> 2800 | E9: 10 | F9: 28000 | G9: 7% of personnel cost
A10: B | B10: Recurring Cost | F10: =F11+F16+F20+F21+F24 -> 574500
A11: B.1 | B11: Technical & Resource Support | F11: =SUM(F12:F15) -> 230000
A12: B.1.1 | B12: Equipment & Chemicals | C12: Per year | D12: 75000 | E12: 1 | F12: =D12*E12 -> 75000 | G12: All the equipment and chemicals to be purchased during the vacation - major costs include replacement of damaged equipment or addition of multiple sets where required
A13: B.1.2 | B13: Books, CDs & DVDs | C13: Per year | D13: 50000 | E13: 1 | F13: 50000 | G13: Addition of new materials for the resource centre for wider usage
A14: B.1.3 | B14: Other Materials | C14: Per year | D14: 25000 | E14: 1 | F14: 25000 | G14: Consumables for the school based activity sessions to be conducted
A15: B.1.4 | B15: Newsletter & Other Publications | C15: Per year | D15: 20000 | E15: 4 | F15: 80000 | G15: Jaana Bandi to be published on a bimonthly basis (Rs. 5000 per issue) and other resource centre publications including catalogue and handbook
A16: B.2 | B16: Events & Capacity Building | F16: =SUM(F17:F19) -> 87000
A17: B.2.1 | B17: Vijnana Mela & National Science Day | C17: Per year | D17: 70000 | E17: 1 | F17: =D17*E17 -> 70000 | G17: Vijnana Mela and the National Science Day are being conducted as 2 separate programs from last year - the budget is based on the expenses incurred last year
A18: B.2.2 | B18: Vijnana Vedike and Teacher Meetings | C18: Per month | D18: 1000 | E18: 5 | F18: 5000 | G18: The expenses might be lower as the Vedike is ready to bear the expenses of the meetings
A19: B.2.3 | B19: Staff Meetings & Capacity Building | C19: Per month | D19: 3000 | E19: 4 | F19: 12000 | G19: This includes the review meetings, exposure visits and training programs for the staff
A20: B.3 | B20: Community Radio Programms | C20: Per program | D20: 6000 | E20: 15 | F20: =D20*E20 -> 90000 | G20: Costing is based on the DAVP rates
A21: B.4 | B21: Travel & Maintenance | F21: =SUM(F22:F23) -> 120000
A22: B.4.1 | B22: Staff Travel & Conveyance | C22: Per month | D22: 3000 | E22: 10 | F22: =D22*E22 -> 30000 | G22: Based on the last years' usage
A23: B.4.2 | B23: Vehicle Travel & Maintenance | C23: Per km | D23: 9000 | E23: 10 | F23: 90000 | G23: Based on the last years' usage
A24: B.5 | B24: Operational Expenses | F24: =SUM(F25:F28) -> 47500
A25: B.5.1 | B25: Office Rent | C25: Per month | D25: 2000 | E25: 10 | F25: =D25*E25 -> 20000
A26: B.5.2 | B26: Stationery & Other expenses | C26: Per month | D26: 500 | E26: 10 | F26: 5000
A27: B.5.3 | B27: Phone calls & Internet | C27: Per month | D27: 750 | E27: 10 | F27: 7500
A28: B.5.4 | B28: Mentoring, Monitoring & Documentation | C28: Per month | D28: 1500 | E28: 10 | F28: 15000
A29: C | B29: Capital expeses | F29: =F30 -> 16500
A30: C.1 | B30: UPS | C30: Per year | D30: 16500 | E30: 1 | F30: =D30*E30 -> 16500 | G30: The present UPS is over 4 years old and needs replacement
B31: Budget | F31: =F10+F4+F29 -> 944000
B32: Overheads (4%) | F32: =F31*0.04 -> 37760
B33: Total Budget | F33: =F31+F32 -> 981760
